Workbook

Sheet Tabelle1
B2: Sternzeit, Uhrzeit und geographische Länge
B4: GMST(0) | C4: Mittlere Sternzeit in Greenwich heute 00:00 UT
B5: LMST | C5: Mittlere lokale, vom Längengrad abhängige Sternzeit | N5: Ingo Mennerich, März 2018
N6: Überarbeitet: 11/21
N7: mit Unterstützung Markus Schilling
J9: Deutschland
B10: Ort A | F10: Heute (local) | G10: =TODAY() -> 2021-11-30 | J10: Differenz zu GMT/UTC | N10: 1 | O10: Stunde
J11: (Sommer +2h / Winter +1h)
B12: Länge (Grad, Minuten) | F12: Heute (GMST(0)) | G12: =Tabelle2!C27 -> 2021-11-30
B14: 10 | C14: ° | D14: 0 | E14: ´ | F14: Greenwich Zeit | G14: =Tabelle2!C40 -> 44530.3747
F17: GMST(0) | G17: =Tabelle2!M43 -> 04:36:21.440
F20: LMST(A) | G20: =Tabelle2!M45 -> 14:17:24.080
B25: Ort B | F25: Datum (UT) | G25: =Tabelle2!C60 -> 2021-11-30 | I25: Ort C | M25: Datum (UT) | N25: =Tabelle2!C93 -> 2021-11-29
B27: Länge (Grad, Minuten) | I27: Länge (Grad, Minuten)
B29: 10 | C29: ° | D29: 0 | E29: ´ | F29: Uhrzeit (UT) | G29: =Tabelle2!C74 -> 22:00:00 | I29: 10 | J29: ° | K29: 0 | L29: ´ | M29: Uhrzeit (UT) | N29: =Tabelle2!C107 -> 23:00:00
B31: Uhrzeit (MEZ/MESZ) | I31: Uhrzeit (MEZ/MESZ)
B33: 23 | C33: h | D33: 0 | E33: min | F33: GMST(0) | G33: =Tabelle2!M81 -> 04:36:21.440 | I33: 0 | J33: h | K33: 0 | L33: min | M33: GMST(0) | N33: =Tabelle2!M114 -> 04:32:24.885
B36: Zeitzone (UTC +/- h) | F36: LMST(B) | G36: =Tabelle2!M83 -> 03:19:58.290 | I36: Zeitzone (UTC +/- h) | M36: LMST(C) | N36: =Tabelle2!M116 -> 04:16:11.591
B37: z.B. MEZ + 1h, MESZ +2h | I37: z.B. MEZ + 1h, MESZ +2h
B38: 1 | C38: h | I38: 1 | J38: h

Sheet Tabelle2
B2: STERNZEIT (GMST(0) und LMST) durch JULIANISCHES DATUM (JD) berechnen
B4: Formeln WIKIPEDIA: "Sternzeit" und https://www.sternenhimmel.info/die-sternzeit.html
B6: Julianisches Datum: Anzahl der Tage seit dem 01. Januar -4723, 00:00 UT
B9: T: Anzahl der dem 01.01.2000 vergangenen Jahrhunderte seit
B13: Greenwich Mean Sidereal Time (heute, 00:00 UT)
B17: Local Mean Sidereal Time
B23: Systemzeit, aktualisieren durch Anklicken
B25: Ort A
B27: SYSTEMZEIT | C27: =ROUNDDOWN(NOW()-Tabelle1!N10/24,0) -> 2021-11-30 | D27: (Heute, 00:00h)
B29: JD | C29: =2451544.5+C27-DATE(2000,1,1) -> 2459548.5
B31: T | C31: =(C29-2451545)/36525 -> 0.2191238877
B33: Länge | C33: =Tabelle1!B14 -> 10 | D33: ° | E33: =Tabelle1!D14 -> 0 | F33: ´
C35: =IF(C33>0,C33+E33/60,C33-E33/60) -> 10 | D35: °
B40: Uhrzeit | C40: =NOW()-Tabelle1!N10/24 -> 44530.3747 | D40: Systemzeit
F43: GMST0 | G43: =24110.54841+8640184.812866*C31+0.093104*C31^2-0.0000062*C31^3 -> 1917381.44 | H43: Sekunden | I43: =G43/3600 -> 532.6059555 | J43: h | K43: =(I43/24-INT(I43/24))*24 -> 4.605955538 | M43: =K43/24 -> 04:36:21.440
B44: Seit 00:00 | C44: =(C40-INT(C40))*24 -> 8.992836111 | D44: h (seit 00:00)
F45: LST | G45: =G43+240*C35+1.002738*C46 -> 1952244.08 | H45: Sekunden | I45: =G45/3600 -> 542.2900222 | J45: h | K45: =(I45/24-INT(I45/24))*24 -> 14.29002221 | M45: =K45/24 -> 14:17:24.080
C46: =INT(C44*3600) -> 32374 | D46: s (seit 00:00)
B56: Ort B
C58: =ROUNDDOWN(NOW()-Tabelle1!N10/24,0) -> 2021-11-30 | E58: DATUM HEUTE, 00:00h MEZ/MESZ
C60: =IF((C71/24+E71/1440)<Tabelle1!N10/24,C58-1,C58) -> 2021-11-30 | E60: DATUM HEUTE, 00:00h UTC
B62: JD | C62: =2451544.5+C60-DATE(2000,1,1) -> 2459548.5 | E62: Julianisches Datum (Tage nach 01.01. -4723 12:00 UT)
B64: T | C64: =(C62-2451545)/36525 -> 0.2191238877 | E64: Jahrhunderte nach 01.01.2000
B67: Länge | C67: =Tabelle1!B29 -> 10 | D67: ° | E67: =Tabelle1!D29 -> 0 | F67: ´
C69: =IF(C67>0,C67+E67/60,C67-E67/60) -> 10
C71: =Tabelle1!B33 -> 23 | D71: h | E71: =Tabelle1!D33 -> 0 | F71: min
B74: Uhrzeit | C74: =IF(E74<0,E74+Tabelle1!N10,E74) -> 22:00:00 | E74: =(C71/24+E71/1440)-Tabelle1!N10/24 -> 0.9166666667 | F74: Eingabe Stunden/Minuten -Offset UTC
B77: Seit 00:00 UTC | C77: =(C74-INT(C74))*24 -> 22 | D77: h (seit 00:00)
C79: =INT(C77*3600) -> 79200 | D79: s (seit 00:00)
F81: GMST0 | G81: =24110.54841+8640184.812866*C64+0.093104*C64^2-0.0000062*C64^3 -> 1917381.44 | H81: Sekunden | I81: =G81/3600 -> 532.6059555 | J81: h* | K81: =(I81/24-INT(I81/24))*24 -> 4.605955538 | M81: =K81/24 -> 04:36:21.440
F83: LST | G83: =G81+240*C69+1.002738*C79 -> 1999198.29 | H83: Sekunden | I83: =G83/3600 -> 555.3328582 | J83: h | K83: =(I83/24-INT(I83/24))*24 -> 3.332858205 | M83: =K83/24 -> 03:19:58.290
B89: Ort C
C91: =ROUNDDOWN(NOW()-Tabelle1!N10/24,0) -> 2021-11-30 | E91: DATUM HEUTE, 00:00h MEZ/MESZ
C93: =IF((C104/24+E104/1440)<Tabelle1!N10/24,C91-1,C91) -> 2021-11-29 | E93: DATUM HEUTE, 00:00h UTC
B95: JD | C95: =2451544.5+C93-DATE(2000,1,1) -> 2459547.5 | E95: Julianisches Datum (Tage nach 01.01. -4723 12:00 UT)
B97: T | C97: =(C95-2451545)/36525 -> 0.2190965092 | E97: Jahrhunderte nach 01.01.2000
B100: Länge | C100: =Tabelle1!I29 -> 10 | D100: ° | E100: =Tabelle1!K29 -> 0 | F100: ´
C102: =IF(C100>0,C100+E100/60,C100-E100/60) -> 10
C104: =Tabelle1!I33 -> 0 | D104: h | E104: =Tabelle1!K33 -> 0 | F104: min
B107: Uhrzeit | C107: =IF(E107<0,E107+Tabelle1!N10,E107) -> 23:00:00 | E107: =(C104/24+E104/1440)-Tabelle1!N10/24 -> -0.04166666667 | F107: Eingabe Stunden/Minuten -Offset UTC
B110: Seit 00:00 UTC | C110: =(C107-INT(C107))*24 -> 23 | D110: h (seit 00:00)
C112: =INT(C110*3600) -> 82800 | D112: s (seit 00:00)
F114: GMST0 | G114: =24110.54841+8640184.812866*C97+0.093104*C97^2-0.0000062*C97^3 -> 1917144.885 | H114: Sekunden | I114: =G114/3600 -> 532.5402457 | J114: h* | K114: =(I114/24-INT(I114/24))*24 -> 4.540245714 | M114: =K114/24 -> 04:32:24.885
F116: LST | G116: =G114+240*C102+1.002738*C112 -> 2002571.591 | H116: Sekunden | I116: =G116/3600 -> 556.2698864 | J116: h | K116: =(I116/24-INT(I116/24))*24 -> 4.26988638 | M116: =K116/24 -> 04:16:11.591

Sheet Tabelle3
